Workbook

Sheet concentartion connection
A2: =SUM(E6:K6) -> 40
A4: حل شونده | F4: چگالي | G4: جرم مولي حل شونده | H4: محلول | L4: چگالي محلول
A5: مول | B5: گرم | C5: Kg | D5: L | E5: mL | H5: L | I5: mL | J5: گرم | K5: Kg
B6: 5 | G6: 40 | L6: 1
A7: =Sheet4!R8 -> 0.125 | B7: =Sheet4!R6 -> 5 | C7: =Sheet4!R7 -> 0.005 | D7: =Sheet4!R4 -> 0 | E7: =Sheet4!R5 -> 0 | H7: =Sheet4!S4 -> 0.05 | I7: =Sheet4!S5 -> 50 | J7: =Sheet4!S6 -> 50 | K7: =Sheet4!S7 -> 0.05
A8: حلال | F8: چگالي حلال | G8: جرم مولي حلال
A9: mol | B9: mL | C9: L | D9: گرم | E9: Kg | H9: www.chemclinic.blogfa.com
D10: 45 | F10: 1 | G10: 18
A11: =Sheet4!Q8 -> 2.5 | B11: =Sheet4!Q5 -> 45 | C11: =Sheet4!Q4 -> 0.045 | D11: =Sheet4!Q6 -> 45 | E11: =Sheet4!Q7 -> 0.045
C13: =IF(H340=1,"مولاليته",IF(H340=2,"مولاريته",IF(H340=3,"غلظت وزني",IF(H340=4,"درصد جرمي",IF(H340=5,"ppm",IF(H340=6,"انحلال پذیری","")))))) -> انحلال پذیری | F13: = | G13: =IF(OR(H340=2,H340=1),A7,IF(OR(H340=3,H340=4,H340=5),B7,IF(H340=6,B7,""))) -> 5 | J13: =IF(OR(H340=1,H340=2,H340=3),"=",IF(OR(H340=6,H340=4),"*100",IF(H340=5,"*1000000",""))) -> *100 | L13: =IF(OR(H340=1,H340=2,H340=3),G13/G14,IF(OR(H340=6,H340=4,H340=5),"=","")) -> = | M13: =IF(OR(H340=6,H340=4),G13/G14*100,IF(H340=5,G13/G14*1000000,"")) -> 11.11111111
G14: =IF(H340=1,E11,IF(H340=2,H7,IF(H340=3,H7,IF(H340=4,J7,IF(H340=5,J7,IF(H340=6,D11,"")))))) -> 45
B15: غلامحسین شیروانی
H340: 6

Sheet Sheet4 (hidden)
A1: solvent | C1: mol | D1: ='concentartion connection'!A10 -> 0 | F1: solute | H1: mol | I1: ='concentartion connection'!A6 -> 0 | K1: solution
C2: L | D2: =IF(ISERROR(D3/1000),0,D3/1000) -> 0 | H2: L | I2: =IF(ISERROR(I3/1000),0,I3/1000) -> 0
A3: g/mol | B3: =IF('concentartion connection'!G10="",1,'concentartion connection'!G10) -> 18 | C3: mL | D3: =IF(ISERROR(D4/B4),0,D4/B4) -> 0 | H3: mL | I3: =IF(ISERROR(I4/G5),0,I4/G5) -> 0 | Q3: solvent | R3: solute | S3: solution
A4: d | B4: ='concentartion connection'!F10 -> 1 | C4: g | D4: =D1*B3 -> 0 | F4: g/mol | G4: =IF('concentartion connection'!G6="",1,'concentartion connection'!G6) -> 40 | H4: g | I4: =I1*G4 -> 0 | P4: L | Q4: =IF(D29=0,N29-I29,D29) -> 0.045 | R4: =IF(N29-D29<0,0,IF(I29=0,N29-D29,I29)) -> 0 | S4: =IF(L5<>0,S5/1000,IF(N29=0,I29+D29,N29)) -> 0.05
C5: Kg | D5: =D4/1000 -> 0 | F5: d | G5: ='concentartion connection'!F6 -> 0 | H5: Kg | I5: =I4/1000 -> 0 | K5: d | L5: =IF('concentartion connection'!L6="",1,'concentartion connection'!L6) -> 1 | P5: mL | Q5: =IF(D30=0,N30-I30,D30) -> 45 | R5: =IF(N30-D30<0,0,IF(I30=0,N30-D30,I30)) -> 0 | S5: =IF(L5<>0,S6/L5,IF(N30=0,I30+D30,N30)) -> 50
C6: mol | D6: =D9/B3 -> 0 | H6: mol | I6: =I9/G4 -> 0 | P6: g | Q6: 45 | R6: =IF(I31=0,N31-D31,I31) -> 5 | S6: =IF(N31=0,I31+D31,N31) -> 50
C7: L | D7: ='concentartion connection'!C10 -> 0 | H7: L | I7: ='concentartion connection'!D6 -> 0 | M7: L | N7: ='concentartion connection'!H6 -> 0 | P7: Kg | Q7: 0.045 | R7: 0.005 | S7: 0.05
C8: mL | D8: =D7*1000 -> 0 | H8: mL | I8: =I7*1000 -> 0 | M8: mL | N8: =N7*1000 -> 0 | P8: mol | Q8: =IF(D33=0,Q6/B3,D33) -> 2.5 | R8: =IF(I33=0,R6/G4,I33) -> 0.125
C9: g | D9: =D8*B4 -> 0 | H9: g | I9: =I8*G5 -> 0 | M9: g | N9: =N8*L5 -> 0
C10: Kg | D10: =D9/1000 -> 0 | H10: Kg | I10: =I9/1000 -> 0 | M10: Kg | N10: =N9/1000 -> 0
C11: mol | D11: =D14/B3 -> 0 | H11: mol | I11: =I14/G4 -> 0
C12: L | D12: =D13/1000 -> 0 | H12: L | I12: =I13/1000 -> 0 | M12: L | N12: =N13/1000 -> 0
C13: mL | D13: ='concentartion connection'!B10 -> 0 | H13: mL | I13: ='concentartion connection'!E6 -> 0 | M13: mL | N13: ='concentartion connection'!I6 -> 0
C14: g | D14: =D13*B4 -> 0 | H14: g | I14: =I13*G5 -> 0 | M14: g | N14: =N13*L5 -> 0
C15: Kg | D15: =D14/1000 -> 0 | H15: Kg | I15: =I14/1000 -> 0 | M15: Kg | N15: =N14/1000 -> 0
C16: mol | D16: =D19/B3 -> 2.5 | H16: mol | I16: =I19/G4 -> 0.125
C17: L | D17: =IF(ISERROR(D18/1000),0,D18/1000) -> 0.045 | H17: L | I17: =IF(ISERROR(I18/1000),0,I18/1000) -> 0 | M17: L | N17: =IF(ISERROR(N18/1000),0,N18/1000) -> 0
C18: mL | D18: =IF(ISERROR(D19/B4),0,D19/B4) -> 45 | H18: mL | I18: =IF(ISERROR(I19/G5),0,I19/G5) -> 0 | M18: mL | N18: =IF(ISERROR(N19/L5),0,N19/L5) -> 0
C19: g | D19: ='concentartion connection'!D10 -> 45 | H19: g | I19: ='concentartion connection'!B6 -> 5 | M19: g | N19: ='concentartion connection'!J6 -> 0
C20: Kg | D20: =D19/1000 -> 0.045 | H20: Kg | I20: =I19/1000 -> 0.005 | M20: Kg | N20: =N19/1000 -> 0
C21: mol | D21: =D24/B3 -> 0 | H21: mol | I21: =I24/G4 -> 0
C22: L | D22: =IF(ISERROR(D23/1000),0,D23/1000) -> 0 | H22: L | I22: =IF(ISERROR(I23/1000),0,I23/1000) -> 0 | M22: L | N22: =IF(ISERROR(N23/1000),0,N23/1000) -> 0
C23: mL | D23: =IF(ISERROR(D24/B4),0,D24/B4) -> 0 | H23: mL | I23: =IF(ISERROR(I24/G5),0,I24/G5) -> 0 | M23: mL | N23: =IF(ISERROR(N24/L5),0,N24/L5) -> 0
C24: g | D24: =D25*1000 -> 0 | H24: g | I24: =I25*1000 -> 0 | M24: g | N24: =N25*1000 -> 0
C25: Kg | D25: ='concentartion connection'!E10 -> 0 | H25: Kg | I25: ='concentartion connection'!C6 -> 0 | M25: Kg | N25: ='concentartion connection'!K6 -> 0
C29: L | D29: =SUMIF(C$1:C$25,C29,D$1:D$25) -> 0.045 | H29: L | I29: =SUM(I22,I17,I12,I7,I2) -> 0 | M29: L | N29: =SUMIF(M$1:M$25,M29,N$1:N$25) -> 0
C30: mL | D30: =SUMIF(C$1:C$25,C30,D$1:D$25) -> 45 | H30: mL | I30: =SUMIF(H$1:H$25,H30,I$1:I$25) -> 0 | M30: mL | N30: =SUMIF(M$1:M$25,M30,N$1:N$25) -> 0
C31: g | D31: 45 | H31: g | I31: 5 | M31: g | N31: 0
C32: Kg | D32: 0.045 | H32: Kg | I32: 0.005 | M32: Kg | N32: 0
C33: mol | D33: 2.5 | H33: mol | I33: 0.125

Sheet محلولها2
B1: داده شده | C1: لیتر محلول | D1: میلی لیتر محلول | E1: گرم حل شونده | F1: گرم محلول | G1: گرم حلال | H1: مول حل شونده
A2: g/L(aq) | C2: =IF(B2<>"",1,"") ->  | D2: =IF(B2<>"",C2*1000,"") ->  | E2: =IF(B2<>"",B2,"") ->  | F2: =IF(B2<>"",D2*B9,"") ->  | G2: =IF(B2<>"",F2-E2,"") ->  | H2: =IF(B2<>"",E2/B10,"") -> 
A3: mol/L(aq) | B3: 1 | C3: =IF(B3<>"",1,"") -> 1 | D3: =IF(B3<>"",C3*1000,"") -> 1000 | E3: =IF(B3<>"",H3*B10,"") -> 50 | F3: =IF(B3<>"",C3*B9*1000,"") -> 1200 | G3: =IF(B3<>"",F3-E3,"") -> 1150 | H3: =IF(B3<>"",B3,"") -> 1
A4: %g | C4: =IF(B4<>"",D4/1000,"") ->  | D4: =IF(B4<>"",F4/B9,"") ->  | E4: =IF(B4<>"",B4,"") ->  | F4: =IF(B4<>"",100,"") ->  | G4: =IF(B4<>"",F4-E4,"") ->  | H4: =IF(B4<>"",B4/B10,"") -> 
A5: mol/Kg | C5: =IF(B5<>"",D5/1000,"") ->  | D5: =IF(B5<>"",F5/B9,"") ->  | E5: =IF(B5<>"",H5*B10,"") ->  | F5: =IF(B5<>"",G5+E5,"") ->  | G5: =IF(B5<>"",1000,"") ->  | H5: =IF(B5<>"",B5,"") ->  | I5: www.chemclinic.blogfa.com
A6: ppm | C6: =IF(B6<>"",D6/1000,"") ->  | D6: =IF(B6<>"",F6/B9,"") ->  | E6: =IF(B6<>"",B6,"") ->  | F6: =IF(B6<>"",1000000,"") ->  | G6: =IF(B6<>"",F6-E6,"") ->  | H6: =IF(B6<>"",B6/B10,"") -> 
A9: چگالی | B9: 1.2
A10: جرم مولی | B10: 50
I12: غلامحسین شیروانی
C13: لیتر محلول | D13: میلی لیتر محلول | E13: گرم حل شونده | F13: گرم محلول | G13: گرم حلال | H13: مول حل شونده
E14: 25
C15: =IF(C14<>"","",SUM(C51:C56)) -> 0.5 | D15: 500 | F15: 600 | G15: 575 | H15: =IF(H14<>"","",SUM(H51:H56)) -> 0.5
C20: g/L(aq) | D20: mol/L(aq) | E20: %g | F20: mol/Kg | G20: ppm
C21: =SUM(E2:E6)/SUM(C2:C6) -> 50 | D21: =SUM(H2:H6)/SUM(C2:C6) -> 1 | E21: =SUM(E2:E6)/SUM(F2:F6)*100 -> 4.166666667 | F21: =SUM(H2:H6)/(SUM(G2:G6)/1000) -> 0.8695652174 | G21: =E21*10000 -> 41666.66667
C50: L(aq) | D50: mL(aq) | E50: g solute | F50: g solution | G50: g solvent | H50: mol
C51: =$F$14/SUM($F$2:$F$6)*SUM(C2:C6) -> 0 | D51: 0 | E51: =$F$14/SUM($F$2:$F$6)*SUM(E2:E6) -> 0 | G51: =$F$14/SUM($F$2:$F$6)*SUM(G2:G6) -> 0 | H51: =$F$14/SUM($F$2:$F$6)*SUM(H2:H6) -> 0
C52: =$E$14/SUM($E$2:$E$6)*SUM(C2:C6) -> 0.5 | D52: =$E$14/SUM($E$2:$E$6)*SUM(D2:D6) -> 500 | F52: =$E$14/SUM($E$2:$E$6)*SUM(F2:F6) -> 600 | G52: =$E$14/SUM($E$2:$E$6)*SUM(G2:G6) -> 575 | H52: 0.5
C53: =$D$14/SUM($D$2:$D$6)*SUM(C2:C6) -> 0 | E53: =$D$14/SUM($D$2:$D$6)*SUM(E2:E6) -> 0 | F53: =$D$14/SUM($D$2:$D$6)*SUM(F2:F6) -> 0 | G53: 0 | H53: 0
D54: =$C$14/SUM($C$2:$C$6)*SUM(D2:D6) -> 0 | E54: =$C$14/SUM($C$2:$C$6)*SUM(E2:E6) -> 0 | F54: 0 | G54: 0 | H54: 0
C55: =$G$14/SUM($G$2:$G$6)*SUM(C2:C6) -> 0 | D55: =$G$14/SUM($G$2:$G$6)*SUM(D2:D6) -> 0 | E55: 0 | F55: 0 | H55: =$G$14/SUM($G$2:$G$6)*SUM(H2:H6) -> 0
C56: =$H$14/SUM($H$2:$H$6)*SUM(C2:C6) -> 0 | D56: 0 | E56: 0 | F56: 0 | G56: =$H$14/SUM($H$2:$H$6)*SUM(G2:G6) -> 0
